[Event "Early-Titled-Tuesday-Blitz-February-06-2024"]
[Site "Chess.com"]
[Date "2024.02.06"]
[Round "3"]
[White "xamax2000"]
[Black "SnekkerAndersen"]
[Result "1-0"]
[WhiteElo "2859"]
[BlackElo "2647"]
[TimeControl "180+1"]
[EndTime "8:29:09 PST"]
[Termination "xamax2000 won by checkmate"]

1. Nf3 {[%clk 0:03:00.9]} 1... d5 {[%clk 0:02:59.7]} 2. g3 {[%clk 0:03:01.3]}
2... Nf6 {[%clk 0:02:59.6]} 3. Bg2 {[%clk 0:03:01.8]} 3... e6 {[%clk 0:03:00.3]}
4. c4 {[%clk 0:03:01.8]} 4... dxc4 {[%clk 0:03:00.4]} 5. Qa4+ {[%clk 0:03:02.2]}
5... Bd7 {[%clk 0:02:58]} 6. Qxc4 {[%clk 0:03:02.7]} 6... c5 {[%clk 0:02:58.7]}
7. d4 {[%clk 0:03:03.3]} 7... Bc6 {[%clk 0:02:45.4]} 8. dxc5 {[%clk 0:03:00.4]}
8... Nbd7 {[%clk 0:02:45.6]} 9. Be3 {[%clk 0:02:59.5]} 9... Rc8 {[%clk
0:02:00.7]} 10. b4 {[%clk 0:02:52.4]} 10... b6 {[%clk 0:02:00.3]} 11. Nc3 {[%clk
0:02:37.3]} 11... bxc5 {[%clk 0:01:59.4]} 12. b5 {[%clk 0:02:37.8]} 12... Bd5
{[%clk 0:01:55.8]} 13. Qa4 {[%clk 0:02:35]} 13... Qb6 {[%clk 0:01:46.1]} 14. O-O
{[%clk 0:02:33.3]} 14... Be7 {[%clk 0:01:46.3]} 15. Nxd5 {[%clk 0:02:28.7]}
15... exd5 {[%clk 0:01:45.2]} 16. Nh4 {[%clk 0:02:22.8]} 16... O-O {[%clk
0:01:40.7]} 17. Nf5 {[%clk 0:02:21.4]} 17... Rfe8 {[%clk 0:01:41]} 18. Rfd1
{[%clk 0:02:11.6]} 18... d4 {[%clk 0:01:39.5]} 19. Bg5 {[%clk 0:01:51]} 19... h6
{[%clk 0:01:32.4]} 20. Bh4 {[%clk 0:01:30.9]} 20... Bf8 {[%clk 0:01:29.6]} 21.
Bxf6 {[%clk 0:00:57.8]} 21... Nxf6 {[%clk 0:01:30.5]} 22. Bf3 {[%clk 0:00:50.1]}
22... g6 {[%clk 0:01:25.1]} 23. Nh4 {[%clk 0:00:49.9]} 23... c4 {[%clk
0:01:23.6]} 24. Rac1 {[%clk 0:00:40.8]} 24... Ne4 {[%clk 0:00:59.7]} 25. Bxe4
{[%clk 0:00:33.7]} 25... Rxe4 {[%clk 0:01:00.6]} 26. Rxc4 {[%clk 0:00:33.9]}
26... Rce8 {[%clk 0:00:31.1]} 27. Nf3 {[%clk 0:00:15.2]} 27... Rxe2 {[%clk
0:00:31]} 28. Rc6 {[%clk 0:00:14.9]} 28... Qb7 {[%clk 0:00:24.8]} 29. Rxd4
{[%clk 0:00:14.1]} 29... Bg7 {[%clk 0:00:18]} 30. Rf4 {[%clk 0:00:12.1]} 30...
Qd7 {[%clk 0:00:16.1]} 31. Qc4 {[%clk 0:00:11.5]} 31... R8e7 {[%clk 0:00:12.8]}
32. Rxg6 {[%clk 0:00:10]} 32... Qh3 {[%clk 0:00:11.4]} 33. Rxg7+ {[%clk
0:00:03.3]} 33... Kxg7 {[%clk 0:00:11.5]} 34. Qc3+ {[%clk 0:00:03.9]} 34... Kg8
{[%clk 0:00:11.6]} 35. Rc4 {[%clk 0:00:04]} 35... Re8 {[%clk 0:00:09.7]} 36. a4
{[%clk 0:00:03.7]} 36... Qe6 {[%clk 0:00:09.8]} 37. a5 {[%clk 0:00:03.4]} 37...
Ra2 {[%clk 0:00:10.1]} 38. Kg2 {[%clk 0:00:03]} 38... Qd5 {[%clk 0:00:10.1]} 39.
Rg4+ {[%clk 0:00:03.2]} 39... Kf8 {[%clk 0:00:10]} 40. Qg7+ {[%clk 0:00:03.5]}
40... Ke7 {[%clk 0:00:10.6]} 41. Rd4 {[%clk 0:00:02.1]} 41... Qxb5 {[%clk
0:00:07.7]} 42. Ne5 {[%clk 0:00:01.5]} 42... Qb7+ {[%clk 0:00:07.4]} 43. Kh3
{[%clk 0:00:02]} 43... Qc8+ {[%clk 0:00:07.8]} 44. g4 {[%clk 0:00:02.2]} 44...
Qe6 {[%clk 0:00:08.2]} 45. Rd7+ {[%clk 0:00:01.8]} 45... Qxd7 {[%clk 0:00:07.2]}
46. Nxd7 {[%clk 0:00:02.7]} 46... Ra3+ {[%clk 0:00:07.8]} 47. Kh4 {[%clk
0:00:02.7]} 47... Kxd7 {[%clk 0:00:08.5]} 48. Qxf7+ {[%clk 0:00:03.3]} 48... Re7
{[%clk 0:00:08.5]} 49. Qd5+ {[%clk 0:00:04]} 49... Ke8 {[%clk 0:00:09.1]} 50. f4
{[%clk 0:00:04.2]} 50... Rae3 {[%clk 0:00:08.8]} 51. Qg8+ {[%clk 0:00:04.3]}
51... Kd7 {[%clk 0:00:09.1]} 52. f5 {[%clk 0:00:04.9]} 52... Re2 {[%clk
0:00:09.1]} 53. Qd5+ {[%clk 0:00:05.1]} 53... Ke8 {[%clk 0:00:09.2]} 54. h3
{[%clk 0:00:06]} 54... R2e5 {[%clk 0:00:08.9]} 55. Qc6+ {[%clk 0:00:06.5]} 55...
Kf7 {[%clk 0:00:09.2]} 56. Qxh6 {[%clk 0:00:07.2]} 56... Ke8 {[%clk 0:00:08.3]}
57. Qg6+ {[%clk 0:00:07.6]} 57... Kd7 {[%clk 0:00:08.3]} 58. Kg5 {[%clk
0:00:08.2]} 58... Re8 {[%clk 0:00:06.8]} 59. h4 {[%clk 0:00:08.4]} 59... R5e7
{[%clk 0:00:06.3]} 60. h5 {[%clk 0:00:08.8]} 60... Rf8 {[%clk 0:00:06.9]} 61. h6
{[%clk 0:00:09]} 61... Rff7 {[%clk 0:00:07.5]} 62. Kh5 {[%clk 0:00:08]} 62...
Ke8 {[%clk 0:00:07.4]} 63. Qc6+ {[%clk 0:00:08.3]} 63... Kf8 {[%clk 0:00:07.8]}
64. Qc8+ {[%clk 0:00:08.5]} 64... Re8 {[%clk 0:00:08.5]} 65. Qc5+ {[%clk
0:00:09.1]} 65... Kg8 {[%clk 0:00:08.7]} 66. g5 {[%clk 0:00:09.2]} 66... Ref8
{[%clk 0:00:09.1]} 67. f6 {[%clk 0:00:09.2]} 67... Rd7 {[%clk 0:00:09.8]} 68.
Qc4+ {[%clk 0:00:09.3]} 68... Kh8 {[%clk 0:00:09.6]} 69. Qc3 {[%clk 0:00:08.9]}
69... Rfd8 {[%clk 0:00:09.5]} 70. f7+ {[%clk 0:00:08.5]} 70... Kh7 {[%clk
0:00:10.1]} 71. g6# {[%clk 0:00:08.9]} 1-0

[Event "Early-Titled-Tuesday-Blitz-February-06-2024"]
[Site "Chess.com"]
[Date "2024.02.06"]
[Round "3"]
[White "PavelShkapenko"]
[Black "amanjazu"]
[Result "1/2-1/2"]
[WhiteElo "2777"]
[BlackElo "2453"]
[TimeControl "180+1"]
[EndTime "8:29:11 PST"]
[Termination "Game drawn by stalemate"]

1. e4 {[%clk 0:03:00.9]} 1... e6 {[%clk 0:02:59.6]} 2. d4 {[%clk 0:03:00.5]}
2... d5 {[%clk 0:03:00.5]} 3. exd5 {[%clk 0:03:01.1]} 3... exd5 {[%clk
0:03:01.4]} 4. Nf3 {[%clk 0:03:01.7]} 4... Nf6 {[%clk 0:03:01.7]} 5. Bd3 {[%clk
0:03:01.2]} 5... Bd6 {[%clk 0:03:02.1]} 6. O-O {[%clk 0:03:01]} 6... O-O {[%clk
0:03:03]} 7. Bg5 {[%clk 0:03:01]} 7... h6 {[%clk 0:03:02.2]} 8. Bh4 {[%clk
0:03:00.5]} 8... c6 {[%clk 0:03:02.7]} 9. Nbd2 {[%clk 0:02:59.6]} 9... Re8
{[%clk 0:03:02.5]} 10. c4 {[%clk 0:02:58.2]} 10... Nbd7 {[%clk 0:03:02.2]} 11.
c5 {[%clk 0:02:57.9]} 11... Bc7 {[%clk 0:03:01.6]} 12. b4 {[%clk 0:02:58.4]}
12... a6 {[%clk 0:02:59.4]} 13. a4 {[%clk 0:02:58.2]} 13... Nf8 {[%clk
0:02:59.4]} 14. b5 {[%clk 0:02:56.1]} 14... axb5 {[%clk 0:02:59.1]} 15. axb5
{[%clk 0:02:56]} 15... Rxa1 {[%clk 0:02:59]} 16. Qxa1 {[%clk 0:02:56.9]} 16...
Bd7 {[%clk 0:02:59.5]} 17. Qa7 {[%clk 0:02:49.4]} 17... Qb8 {[%clk 0:02:47.5]}
18. Qxb8 {[%clk 0:02:41.3]} 18... Bxb8 {[%clk 0:02:48.4]} 19. Bxf6 {[%clk
0:02:36.4]} 19... gxf6 {[%clk 0:02:46]} 20. Rb1 {[%clk 0:02:36.2]} 20... Ne6
{[%clk 0:02:30.3]} 21. g3 {[%clk 0:02:35.3]} 21... Kg7 {[%clk 0:02:15.6]} 22.
Nf1 {[%clk 0:02:26.2]} 22... f5 {[%clk 0:02:01.5]} 23. bxc6 {[%clk 0:02:12.8]}
23... bxc6 {[%clk 0:01:57.6]} 24. Bxf5 {[%clk 0:02:13.3]} 24... Nxc5 {[%clk
0:01:55.7]} 25. Ne3 {[%clk 0:02:00.3]} 25... Ne6 {[%clk 0:01:32.3]} 26. Rb7
{[%clk 0:01:58.5]} 26... Rd8 {[%clk 0:01:26.5]} 27. Ng4 {[%clk 0:01:18.2]} 27...
Nf8 {[%clk 0:01:12.4]} 28. Bxd7 {[%clk 0:01:14.6]} 28... Nxd7 {[%clk 0:01:13.3]}
29. Ne3 {[%clk 0:01:10.4]} 29... Kf6 {[%clk 0:01:08.3]} 30. Kg2 {[%clk
0:01:08.9]} 30... Ke6 {[%clk 0:01:02.6]} 31. h4 {[%clk 0:01:07.1]} 31... c5
{[%clk 0:00:56.3]} 32. Rb5 {[%clk 0:01:02.2]} 32... Bd6 {[%clk 0:00:52.6]} 33.
Ra5 {[%clk 0:01:00.9]} 33... Rc8 {[%clk 0:00:46.2]} 34. Kf1 {[%clk 0:00:51.9]}
34... Nf6 {[%clk 0:00:45.2]} 35. dxc5 {[%clk 0:00:47.2]} 35... Rxc5 {[%clk
0:00:44.4]} 36. Nd4+ {[%clk 0:00:44.5]} 36... Ke5 {[%clk 0:00:41.9]} 37. Rxc5
{[%clk 0:00:39.5]} 37... Bxc5 {[%clk 0:00:42.8]} 38. Ndf5 {[%clk 0:00:40.1]}
38... d4 {[%clk 0:00:39.5]} 39. Nxh6 {[%clk 0:00:37.9]} 39... dxe3 {[%clk
0:00:37.7]} 40. fxe3 {[%clk 0:00:38.1]} 40... Ke6 {[%clk 0:00:35.9]} 41. Ke2
{[%clk 0:00:36.9]} 41... Bf8 {[%clk 0:00:33.2]} 42. Nxf7 {[%clk 0:00:32.1]}
42... Kxf7 {[%clk 0:00:34.1]} 43. Kf3 {[%clk 0:00:32.7]} 43... Kg6 {[%clk
0:00:33.2]} 44. g4 {[%clk 0:00:32.9]} 44... Bd6 {[%clk 0:00:33.1]} 45. g5 {[%clk
0:00:31.5]} 45... Ne8 {[%clk 0:00:31.3]} 46. Kg4 {[%clk 0:00:31.9]} 46... Ng7
{[%clk 0:00:31.2]} 47. Kf3 {[%clk 0:00:29.4]} 47... Kh5 {[%clk 0:00:30.5]} 48.
Ke4 {[%clk 0:00:29.8]} 48... Kxh4 {[%clk 0:00:30.9]} 49. Kd5 {[%clk 0:00:30.4]}
49... Bh2 {[%clk 0:00:30.6]} 50. Ke4 {[%clk 0:00:28.3]} 50... Kxg5 {[%clk
0:00:30.7]} 51. Kd5 {[%clk 0:00:29.2]} 51... Kf6 {[%clk 0:00:30.6]} 52. e4
{[%clk 0:00:30.1]} 52... Be5 {[%clk 0:00:30.2]} 53. Kc5 {[%clk 0:00:30.3]} 53...
Ke6 {[%clk 0:00:31.1]} 54. Kc6 {[%clk 0:00:30.6]} 54... Nh5 {[%clk 0:00:32]} 55.
Kc5 {[%clk 0:00:31]} 55... Nf6 {[%clk 0:00:32.9]} 56. Kc4 {[%clk 0:00:31.2]}
56... Nxe4 {[%clk 0:00:32.8]} 57. Kd3 {[%clk 0:00:31.9]} 57... Kd5 {[%clk
0:00:33]} 58. Ke3 {[%clk 0:00:32.2]} 58... Ng5 {[%clk 0:00:33.2]} 59. Kd3 {[%clk
0:00:32.3]} 59... Bf4 {[%clk 0:00:32.4]} 60. Kc3 {[%clk 0:00:32.2]} 60... Nh3
{[%clk 0:00:28.4]} 61. Kd3 {[%clk 0:00:32]} 61... Ng1 {[%clk 0:00:28.9]} 62. Kc3
{[%clk 0:00:31.4]} 62... Ne2+ {[%clk 0:00:28.1]} 63. Kd3 {[%clk 0:00:31.7]}
63... Nc1+ {[%clk 0:00:28.7]} 64. Kc3 {[%clk 0:00:31.3]} 64... Kc5 {[%clk
0:00:27.9]} 65. Kc2 {[%clk 0:00:27.7]} 65... Kd4 {[%clk 0:00:21.9]} 66. Kd1
{[%clk 0:00:27.7]} 66... Kd3 {[%clk 0:00:19]} 67. Ke1 {[%clk 0:00:28]} 67... Be3
{[%clk 0:00:19.3]} 68. Kf1 {[%clk 0:00:28.5]} 68... Nb3 {[%clk 0:00:18.1]} 69.
Kg2 {[%clk 0:00:28.2]} 69... Nd4 {[%clk 0:00:19]} 70. Kg3 {[%clk 0:00:28.5]}
70... Ke4 {[%clk 0:00:18]} 71. Kg4 {[%clk 0:00:28.6]} 71... Nf5 {[%clk
0:00:17.1]} 72. Kh3 {[%clk 0:00:28.9]} 72... Kf3 {[%clk 0:00:15.6]} 73. Kh2
{[%clk 0:00:28.7]} 73... Bf2 {[%clk 0:00:14.5]} 74. Kh3 {[%clk 0:00:28.6]} 74...
Bg1 {[%clk 0:00:13.5]} 1/2-1/2

[Event "Early-Titled-Tuesday-Blitz-February-06-2024"]
[Site "Chess.com"]
[Date "2024.02.06"]
[Round "3"]
[White "Tssunami"]
[Black "MikaelyanArman"]
[Result "0-1"]
[WhiteElo "2504"]
[BlackElo "2884"]
[TimeControl "180+1"]
[EndTime "8:29:11 PST"]
[Termination "MikaelyanArman won on time"]

1. d4 {[%clk 0:03:00]} 1... Nf6 {[%clk 0:02:59.6]} 2. c4 {[%clk 0:02:59.6]} 2...
d6 {[%clk 0:03:00.1]} 3. Nc3 {[%clk 0:02:59.3]} 3... e5 {[%clk 0:02:59.9]} 4.
Bg5 {[%clk 0:02:59.2]} 4... exd4 {[%clk 0:02:57.1]} 5. Qxd4 {[%clk 0:02:58]}
5... Nc6 {[%clk 0:02:57.7]} 6. Qe3+ {[%clk 0:02:57.6]} 6... Be6 {[%clk
0:02:56.1]} 7. Nd5 {[%clk 0:02:52.5]} 7... Be7 {[%clk 0:02:50.4]} 8. Nxe7 {[%clk
0:02:52]} 8... Qxe7 {[%clk 0:02:51.3]} 9. Qc3 {[%clk 0:02:45.1]} 9... O-O-O
{[%clk 0:02:37.4]} 10. Bxf6 {[%clk 0:02:43.7]} 10... gxf6 {[%clk 0:02:38.3]} 11.
e3 {[%clk 0:02:35.3]} 11... d5 {[%clk 0:02:38.6]} 12. cxd5 {[%clk 0:02:34.8]}
12... Rxd5 {[%clk 0:02:32.6]} 13. Nf3 {[%clk 0:02:18.6]} 13... Rc5 {[%clk
0:02:29.4]} 14. Qa3 {[%clk 0:02:04]} 14... Nb4 {[%clk 0:02:29.6]} 15. Nd4 {[%clk
0:02:04.2]} 15... Rd8 {[%clk 0:02:23]} 16. Be2 {[%clk 0:00:37.8]} 16... Rxd4
{[%clk 0:02:07.4]} 17. O-O {[%clk 0:00:33.6]} 17... Rh4 {[%clk 0:01:59.5]} 18.
g3 {[%clk 0:00:27]} 18... Rg5 {[%clk 0:01:29.1]} 19. Qxa7 {[%clk 0:00:23.9]}
19... c6 {[%clk 0:01:04.7]} 20. Rfd1 {[%clk 0:00:20.1]} 20... Nd5 {[%clk
0:01:02.3]} 21. Rac1 {[%clk 0:00:18.2]} 21... Rb4 {[%clk 0:00:40.9]} 22. Ba6
{[%clk 0:00:16.5]} 22... Qc7 {[%clk 0:00:30]} 23. Qa8+ {[%clk 0:00:12.4]} 23...
Kd7 {[%clk 0:00:24.7]} 24. Bf1 {[%clk 0:00:10.8]} 24... Ke7 {[%clk 0:00:20.7]}
25. Bg2 {[%clk 0:00:10.5]} 25... h5 {[%clk 0:00:10.7]} 26. e4 {[%clk 0:00:10.8]}
26... Nb6 {[%clk 0:00:08.9]} 27. Qh8 {[%clk 0:00:09.8]} 27... h4 {[%clk
0:00:06.3]} 28. Qxh4 {[%clk 0:00:09.6]} 28... Rc4 {[%clk 0:00:05.4]} 29. Rxc4
{[%clk 0:00:09.2]} 29... Nxc4 {[%clk 0:00:06.3]} 30. b3 {[%clk 0:00:08.9]} 30...
Ne5 {[%clk 0:00:05.9]} 31. Qh8 {[%clk 0:00:08]} 31... Ng6 {[%clk 0:00:05.9]} 32.
Qg8 {[%clk 0:00:07.8]} 32... Nf4 {[%clk 0:00:05]} 33. Qh8 {[%clk 0:00:05.9]}
33... Nxg2 {[%clk 0:00:04.8]} 34. Kxg2 {[%clk 0:00:06.8]} 34... Re5 {[%clk
0:00:04.9]} 35. Qh7 {[%clk 0:00:06.3]} 35... Rc5 {[%clk 0:00:03.6]} 36. h4
{[%clk 0:00:06.2]} 36... Rc2 {[%clk 0:00:03.4]} 37. Qg8 {[%clk 0:00:05.7]} 37...
Rc5 {[%clk 0:00:03.3]} 38. b4 {[%clk 0:00:05.4]} 38... Re5 {[%clk 0:00:03.5]}
39. Qh7 {[%clk 0:00:04]} 39... Rb5 {[%clk 0:00:03.4]} 40. a3 {[%clk 0:00:04]}
40... Re5 {[%clk 0:00:03.7]} 41. h5 {[%clk 0:00:04.4]} 41... Qc8 {[%clk
0:00:04.3]} 42. h6 {[%clk 0:00:04.4]} 42... Qf8 {[%clk 0:00:05]} 43. f4 {[%clk
0:00:03.4]} 43... Rh5 {[%clk 0:00:04.9]} 44. Qg7 {[%clk 0:00:03.3]} 44... Rxh6
{[%clk 0:00:04.1]} 45. Qxf8+ {[%clk 0:00:02.7]} 45... Kxf8 {[%clk 0:00:05]} 46.
f5 {[%clk 0:00:02.3]} 46... Bc4 {[%clk 0:00:05.3]} 47. Rd8+ {[%clk 0:00:02.7]}
47... Ke7 {[%clk 0:00:05]} 48. Rb8 {[%clk 0:00:03]} 48... b5 {[%clk 0:00:05.8]}
49. Rb7+ {[%clk 0:00:03.5]} 49... Kd6 {[%clk 0:00:06.4]} 50. Kf3 {[%clk
0:00:03.6]} 50... Rh1 {[%clk 0:00:06.4]} 51. Ke3 {[%clk 0:00:03.2]} 51... Rg1
{[%clk 0:00:06.4]} 52. Kf3 {[%clk 0:00:02.7]} 52... Rf1+ {[%clk 0:00:06.7]} 53.
Ke3 {[%clk 0:00:03.1]} 53... Ra1 {[%clk 0:00:06.6]} 54. g4 {[%clk 0:00:02.6]}
54... Rxa3+ {[%clk 0:00:07]} 55. Kf4 {[%clk 0:00:01.9]} 55... Be2 {[%clk
0:00:07.2]} 56. g5 {[%clk 0:00:02.3]} 56... Rf3+ {[%clk 0:00:06.6]} 57. Kg4
{[%clk 0:00:02.9]} 57... Rf1+ {[%clk 0:00:07.5]} 58. Kg3 {[%clk 0:00:03.1]}
58... fxg5 {[%clk 0:00:07.8]} 59. Rxf7 {[%clk 0:00:02.9]} 59... Ke5 {[%clk
0:00:07.5]} 60. Re7+ {[%clk 0:00:03.1]} 60... Kd4 {[%clk 0:00:08.2]} 61. Re6
{[%clk 0:00:02.2]} 61... Ke3 {[%clk 0:00:08.1]} 62. f6 {[%clk 0:00:02.2]} 62...
Rf4 {[%clk 0:00:06.9]} 0-1

[Event "Early-Titled-Tuesday-Blitz-February-06-2024"]
[Site "Chess.com"]
[Date "2024.02.06"]
[Round "3"]
[White "Sattarov_Bobur"]
[Black "SharapovEvgeny"]
[Result "1-0"]
[WhiteElo "2758"]
[BlackElo "2534"]
[TimeControl "180+1"]
[EndTime "8:29:13 PST"]
[Termination "Sattarov_Bobur won by resignation"]

1. e4 {[%clk 0:03:00.9]} 1... c5 {[%clk 0:02:59.8]} 2. Nf3 {[%clk 0:03:00.7]}
2... d6 {[%clk 0:03:00]} 3. d4 {[%clk 0:03:01.3]} 3... cxd4 {[%clk 0:03:00.4]}
4. Nxd4 {[%clk 0:03:02.2]} 4... Nf6 {[%clk 0:03:00.9]} 5. f3 {[%clk 0:03:02.9]}
5... e6 {[%clk 0:03:00.2]} 6. c4 {[%clk 0:03:02.9]} 6... Be7 {[%clk 0:03:00.5]}
7. Nc3 {[%clk 0:03:03.6]} 7... O-O {[%clk 0:03:00.8]} 8. Be3 {[%clk 0:03:04.3]}
8... Nbd7 {[%clk 0:03:01.2]} 9. Be2 {[%clk 0:03:04.6]} 9... d5 {[%clk
0:03:01.8]} 10. O-O {[%clk 0:02:32.8]} 10... dxe4 {[%clk 0:02:59.1]} 11. fxe4
{[%clk 0:02:30.8]} 11... Ne5 {[%clk 0:02:56.8]} 12. Qc2 {[%clk 0:02:18.4]} 12...
a6 {[%clk 0:02:55.8]} 13. h3 {[%clk 0:02:12.1]} 13... Qc7 {[%clk 0:02:55.2]} 14.
b3 {[%clk 0:02:08.4]} 14... Rd8 {[%clk 0:02:51.5]} 15. Rad1 {[%clk 0:02:07.9]}
15... b6 {[%clk 0:02:45.3]} 16. Kh1 {[%clk 0:01:58]} 16... Bb7 {[%clk
0:02:44.9]} 17. Bf4 {[%clk 0:01:57.5]} 17... Bd6 {[%clk 0:02:29.7]} 18. Bg5
{[%clk 0:01:49.5]} 18... Be7 {[%clk 0:02:27.3]} 19. Qc1 {[%clk 0:01:36.5]} 19...
Rd7 {[%clk 0:02:21.6]} 20. Nd5 {[%clk 0:01:26.3]} 20... exd5 {[%clk 0:02:19.3]}
21. exd5 {[%clk 0:01:27.2]} 21... Nxd5 {[%clk 0:02:05.3]} 22. Nf5 {[%clk
0:01:16.2]} 22... Bf8 {[%clk 0:01:57.4]} 23. cxd5 {[%clk 0:01:12.1]} 23... Qxc1
{[%clk 0:01:57.1]} 24. Rxc1 {[%clk 0:01:08.9]} 24... Bxd5 {[%clk 0:01:51]} 25.
Bf4 {[%clk 0:01:01.4]} 25... Ng6 {[%clk 0:01:41.2]} 26. Be3 {[%clk 0:00:59]}
26... b5 {[%clk 0:01:35.6]} 27. Bg4 {[%clk 0:00:55.7]} 27... Be6 {[%clk
0:01:29.6]} 28. Bf3 {[%clk 0:00:50.5]} 28... Rad8 {[%clk 0:01:28.4]} 29. Bc6
{[%clk 0:00:46.4]} 29... Bxf5 {[%clk 0:01:23.7]} 30. Rxf5 {[%clk 0:00:47.3]}
30... Rd1+ {[%clk 0:01:23.4]} 31. Rf1 {[%clk 0:00:46.1]} 31... Rxf1+ {[%clk
0:01:19.9]} 32. Rxf1 {[%clk 0:00:46]} 32... Rd3 {[%clk 0:01:15.3]} 33. Bc1
{[%clk 0:00:41.7]} 33... Rc3 {[%clk 0:01:08.9]} 34. Bd5 {[%clk 0:00:40.5]} 34...
Rc7 {[%clk 0:01:00.1]} 35. Be3 {[%clk 0:00:25.9]} 35... Rd7 {[%clk 0:00:52.6]}
36. Bc6 {[%clk 0:00:25.9]} 36... Rc7 {[%clk 0:00:43.4]} 37. Bd5 {[%clk
0:00:25.5]} 37... Rd7 {[%clk 0:00:43.5]} 38. Bc6 {[%clk 0:00:25.5]} 38... Rc7
{[%clk 0:00:41.6]} 39. Bf3 {[%clk 0:00:25.1]} 39... Ne5 {[%clk 0:00:35.2]} 40.
Be4 {[%clk 0:00:22.8]} 40... g6 {[%clk 0:00:32.6]} 41. Rd1 {[%clk 0:00:19.4]}
41... Bc5 {[%clk 0:00:25.4]} 42. Bf4 {[%clk 0:00:12.3]} 42... Re7 {[%clk
0:00:24.2]} 43. Bh6 {[%clk 0:00:10.7]} 43... f5 {[%clk 0:00:21.6]} 44. Bd5+
{[%clk 0:00:09.7]} 44... Nf7 {[%clk 0:00:18.9]} 45. Rc1 {[%clk 0:00:06.8]} 45...
Rc7 {[%clk 0:00:14.8]} 46. Bf4 {[%clk 0:00:05.6]} 46... Rc8 {[%clk 0:00:12.7]}
47. b4 {[%clk 0:00:05.1]} 47... Kf8 {[%clk 0:00:11]} 48. Rxc5 {[%clk 0:00:04.6]}
48... Rxc5 {[%clk 0:00:10.9]} 49. bxc5 {[%clk 0:00:05.5]} 49... g5 {[%clk
0:00:11.5]} 50. Bxf7 {[%clk 0:00:04.7]} 50... Kxf7 {[%clk 0:00:11]} 51. Bxg5
{[%clk 0:00:03.4]} 51... Ke6 {[%clk 0:00:11.6]} 52. Be3 {[%clk 0:00:03.6]} 52...
Kd5 {[%clk 0:00:12.3]} 53. Kh2 {[%clk 0:00:03.8]} 53... b4 {[%clk 0:00:13.1]}
54. Kg3 {[%clk 0:00:03.6]} 54... a5 {[%clk 0:00:13.8]} 55. Kf4 {[%clk
0:00:03.9]} 55... a4 {[%clk 0:00:14.5]} 56. Kxf5 {[%clk 0:00:03.7]} 56... a3
{[%clk 0:00:14.7]} 57. Bc1 {[%clk 0:00:02.3]} 57... Kxc5 {[%clk 0:00:14.7]} 58.
Ke4 {[%clk 0:00:02.5]} 58... Kc4 {[%clk 0:00:15.5]} 59. g4 {[%clk 0:00:02.6]}
59... Kc3 {[%clk 0:00:16.1]} 60. Bg5 {[%clk 0:00:01.6]} 60... Kb2 {[%clk
0:00:15.1]} 61. Be7 {[%clk 0:00:01.8]} 61... Kxa2 {[%clk 0:00:15.6]} 62. Bxb4
{[%clk 0:00:01.4]} 62... Kb3 {[%clk 0:00:15.4]} 63. Bxa3 {[%clk 0:00:02.3]}
63... Kxa3 {[%clk 0:00:15.8]} 64. Kf5 {[%clk 0:00:03.2]} 64... Kb4 {[%clk
0:00:16.6]} 65. Kg5 {[%clk 0:00:04.1]} 65... Kc5 {[%clk 0:00:17.4]} 66. Kh6
{[%clk 0:00:05]} 66... Kd6 {[%clk 0:00:18.1]} 67. h4 {[%clk 0:00:05.6]} 67...
Ke7 {[%clk 0:00:18.9]} 68. g5 {[%clk 0:00:06.3]} 68... Kf7 {[%clk 0:00:19.6]}
69. Kxh7 {[%clk 0:00:06.8]} 69... Kf8 {[%clk 0:00:20.3]} 70. g6 {[%clk
0:00:07.2]} 1-0